bitfinex/quotes_SOLUSD_20240615
["timestamp","ask_amount","ask_price","bid_price","bid_amount"]
[1718449940247,106.4916,143.93,143.81,116.1828]
[1718449940451,5.68,143.89,143.83,5.68]
[1718449940651,5.68,143.88,143.83,5.68]
[1718449941562,5.68,143.88,143.82,6.02]
[1718449942877,5.68,143.88,143.83,6.44108141]
[1718449943181,2.571,143.91,143.83,6.44108141]
[1718449943353,5.68,143.88,143.83,6.44108141]
[1718449943548,9.0623,143.93,143.84,0.51]
[1718449943795,5.68,143.9,143.85,12.1188]
[1718449944354,5.68,143.89,143.85,6.4388]
[1718449945074,25.7096,143.92,143.85,6.4388]
[1718449945292,5.68,143.89,143.85,6.4388]
[1718449945667,5.68,143.88,143.85,6.4388]
[1718449945870,5.68,143.88,143.82,5.68]
[1718449946063,5.68,143.87,143.83,0.17]
[1718449946880,5.68,143.87,143.82,0.17]
[1718449947092,5.68,143.87,143.82,0.51]
[1718449947465,5.68,143.85,143.81,22.6216]
[1718449949568,5.68,143.86,143.81,22.6216]
[1718449949974,5.68,143.85,143.81,22.6216]
[1718449954063,15.2731,143.9,143.82,7.07047412]
[1718449954375,5.68,143.86,143.81,28.3016]
[1718449954584,5.68,143.85,143.81,22.6216]
[1718449956793,15.2731,143.9,143.81,28.3016]
[1718449956995,5.68,143.87,143.81,28.3016]
[1718449957980,5.68,143.86,143.82,1.39032929]
[1718449958182,22.9868,143.9,143.81,28.3016]
[1718449958363,5.68,143.87,143.81,28.3016]
[1718449958860,5.68,143.86,143.81,28.3016]
[1718449959685,5.68,143.86,143.81,22.6216]
[1718449963196,5.68,143.86,143.81,24.01206909]
[1718449964065,7.7138,143.9,143.82,1.39046897]
[1718449964290,5.68,143.87,143.82,1.39046897]
[1718449967095,0.17,143.91,143.82,7.07046897]
[1718449967297,0.17,143.91,143.83,5.85]
[1718449967298,5.68,143.89,143.83,5.85]
[1718449967590,7.7128,143.92,143.84,1.39012051]
[1718449967777,5.68,143.89,143.84,1.39012051]
[1718449968085,5.68,143.89,143.83,0.17]
[1718449968288,2.5713,143.9,143.83,6.02]
[1718449968492,2.5713,143.9,143.83,0.34]
[1718449968791,7.7138,143.9,143.83,0.34]
[1718449969306,125.7114,143.91,143.83,0.34]
[1718449969512,125.7114,143.91,143.83,1.73018194]
[1718449970405,2.5712,143.9,143.83,1.73018194]
[1718449970580,2.5712,143.9,143.83,0.34]
[1718449970770,7.7136,143.9,143.83,0.34]
[1718449970969,15.4273,143.9,143.82,0.17]
[1718449971169,15.4273,143.9,143.82,0.34]
[1718449971170,2.5714,143.89,143.82,0.34]
[1718449971370,2.5714,143.89,143.82,0.17]
[1718449971673,25.7126,143.9,143.82,0.17]
[1718449971875,5.68,143.87,143.82,0.17]
[1718449972494,5.68,143.85,143.81,22.6216]
[1718449975171,5.68,143.86,143.81,22.6216]
[1718449976516,2.5716,143.88,143.81,22.6216]
[1718449976686,5.68,143.86,143.81,22.6216]
[1718449978490,100.0,143.89,143.81,28.3016]
[1718449978721,5.68,143.86,143.81,22.6216]
[1718449979510,5.68,143.85,143.81,22.6216]
[1718449980499,25.7163,143.88,143.81,22.6216]
[1718449980724,5.68,143.85,143.81,22.6216]
[1718449981801,5.68,143.84,143.81,22.6216]
[1718449984027,100.0,143.87,143.81,16.1828]
[1718449984207,25.9771,143.93,143.78,3.77304784]
[1718449984208,5.68,143.82,143.78,3.77304784]
[1718449984410,5.68,143.81,143.78,3.77304784]
[1718449985699,5.68,143.82,143.78,3.77304784]
[1718449987638,115.9691,143.85,143.78,3.77304784]
[1718449987807,5.68,143.81,143.78,3.77304784]
[1718449988299,0.33333333,143.8,143.78,3.77304784]
[1718449990431,6.01333333,143.8,143.78,3.77304784]
[1718449991741,5.68,143.79,143.78,3.77304784]
[1718450000348,118.1439,143.83,143.78,3.77304784]
[1718450000541,5.68,143.79,143.78,3.77304784]
[1718450006049,115.5715,143.83,143.78,3.77304784]
[1718450006353,5.68,143.8,143.78,3.77304784]
[1718450009149,48.442,143.85,143.78,3.77304784]
[1718450009335,5.68,143.81,143.78,3.77304784]
[1718450009540,5.68,143.82,143.78,3.77304784]
[1718450009857,100.0,143.89,143.79,22.47212064]
[1718450010031,5.68,143.84,143.8,0.54268289]
[1718450010541,5.68,143.84,143.79,21.9294]
[1718450010737,5.68,143.84,143.79,16.2494]
[1718450011254,5.68,143.83,143.79,16.2494]
[1718450012554,5.68,143.82,143.79,16.2494]
[1718450012848,7.7159,143.86,143.79,16.2494]
[1718450013050,5.68,143.83,143.79,16.2494]
[1718450017258,5.68,143.82,143.79,16.2494]
[1718450018664,5.68,143.83,143.79,16.2494]
[1718450018846,5.68,143.84,143.8,1.38919271]
[1718450021056,5.68,143.85,143.8,1.38919271]
[1718450022268,5.68,143.85,143.79,21.9294]
[1718450022473,5.68,143.84,143.79,21.9294]
[1718450023681,5.68,143.84,143.8,1.39056491]
[1718450024348,5.68,143.84,143.79,21.9294]
[1718450024536,5.68,143.84,143.8,0.17]
[1718450025654,5.68,143.84,143.79,21.9294]
[1718450027568,5.68,143.84,143.79,16.2494]
[1718450027739,5.68,143.84,143.79,21.9294]
[1718450028066,5.68,143.84,143.79,16.2494]
[1718450028270,5.68,143.83,143.79,16.2494]
[1718450029447,5.68,143.82,143.79,16.2494]
[1718450039551,5.68,143.8,143.78,3.77304784]
[1718450039754,5.68,143.79,143.78,3.77304784]
[1718450040071,100.0,143.83,143.78,3.77304784]
[1718450040372,5.68,143.8,143.78,3.77304784]
[1718450040594,5.68,143.81,143.78,3.77304784]
[1718450040753,100.0,143.83,143.78,3.77304784]
[1718450041157,5.68,143.8,143.78,3.77304784]
[1718450041405,100.0,143.83,143.78,3.77304784]
[1718450041694,5.68,143.81,143.78,3.77304784]
[1718450041853,100.0,143.83,143.78,3.77304784]
[1718450042152,5.68,143.81,143.78,3.77304784]
[1718450044879,100.0,143.83,143.78,3.77304784]
[1718450045051,5.68,143.81,143.78,3.77304784]
[1718450045249,100.0,143.83,143.78,3.77304784]
[1718450045452,5.68,143.81,143.78,3.77304784]
[1718450045987,100.0,143.83,143.78,3.77304784]
[1718450046276,5.68,143.81,143.78,3.77304784]
[1718450046864,100.0,143.83,143.78,3.77304784]
[1718450047067,7.717,143.84,143.78,3.77304784]
[1718450047267,107.23623332,143.87,143.78,9.45304784]
[1718450047457,23.1499,143.85,143.78,3.77304784]
[1718450047662,5.68,143.83,143.78,3.77304784]
[1718450047974,5.68,143.83,143.79,1.3886541]
[1718450049180,5.68,143.83,143.78,3.77304784]
[1718450052392,5.68,143.83,143.79,1.39069031]
[1718450053393,5.68,143.83,143.78,3.77304784]
[1718450054310,5.68,143.82,143.78,3.77304784]
[1718450054590,5.68,143.81,143.78,3.77304784]
[1718450055177,5.68,143.8,143.78,3.77304784]
[1718450056267,5.68,143.79,143.78,3.77304784]
[1718450061978,5.68,143.79,143.78,5.02916984]
[1718450071398,5.68,143.79,143.78,3.77304784]
[1718450072492,5.85,143.79,143.78,3.77304784]
[1718450073278,5.68,143.79,143.78,3.77304784]
[1718450073904,100.0,143.8,143.78,3.77304784]
[1718450074074,5.68,143.79,143.78,3.77304784]
[1718450075299,100.0,143.8,143.78,3.77304784]
[1718450075503,100.0,143.82,143.78,3.77304784]
[1718450075804,5.68,143.79,143.78,3.77304784]
[1718450076378,0.34,143.83,143.78,3.77304784]
[1718450076579,5.68,143.81,143.78,3.77304784]
[1718450077682,5.68,143.79,143.78,3.77304784]
[1718450078091,5.68,143.8,143.78,3.77304784]
[1718450081624,7.7177,143.83,143.78,3.77304784]
[1718450081925,5.68,143.82,143.78,3.77304784]
[1718450082517,41.5637,143.85,143.78,3.77304784]
[1718450082823,5.68,143.83,143.78,25.32444784]
[1718450083696,2.5723,143.84,143.78,25.32444784]
[1718450083895,7.7164,143.85,143.78,25.32444784]
[1718450084094,5.68,143.83,143.78,25.32444784]
[1718450084619,5.68,143.83,143.79,0.55460131]
[1718450084918,5.68,143.83,143.78,25.32444784]
[1718450087006,5.68,143.83,143.78,19.64444784]
[1718450094312,5.68,143.82,143.78,19.64444784]
[1718450096005,5.68,143.79,143.78,3.77304784]
[1718450096337,7.7181,143.82,143.78,3.77304784]
[1718450096338,2.5727,143.82,143.78,3.77304784]
[1718450096513,5.68,143.79,143.78,3.77304784]
[1718450097431,123.1528,143.83,143.78,3.77304784]
[1718450097607,5.68,143.8,143.78,3.77304784]
[1718450100308,18.0068,143.84,143.78,3.77304784]
[1718450100309,7.7171,143.84,143.78,3.77304784]
[1718450100508,5.68,143.81,143.78,3.77304784]
[1718450100727,15.434,143.84,143.78,3.77304784]
[1718450100728,5.68,143.8,143.78,3.77304784]
[1718450101637,5.68,143.79,143.78,3.77304784]
[1718450102524,2.5726,143.82,143.78,3.77304784]
[1718450102525,5.68,143.8,143.78,3.77304784]
[1718450103306,100.0,143.84,143.78,3.77304784]
[1718450103505,7.22860519,143.85,143.78,3.77304784]
[1718450103735,106.2826,143.9,143.81,6.0636]
[1718450103940,100.0,143.92,143.84,5.68]
[1718450104243,100.0,143.92,143.82,100.51]
[1718450104244,5.68,143.9,143.85,16.6038]
[1718450104433,100.0,143.92,143.85,16.6038]
[1718450104434,5.68,143.89,143.85,16.6038]
[1718450104631,16.6273,143.93,143.85,16.6038]
[1718450104632,21.7689,143.93,143.85,16.6038]
[1718450104946,123.1289,143.98,143.86,106.4036]
[1718450105252,123.1289,143.98,143.89,5.68]
[1718450105253,5.68,143.94,143.89,5.68]
[1718450106142,5.68,143.94,143.87,0.34]
[1718450106334,7.7112,143.95,143.87,6.02]
[1718450106335,5.68,143.92,143.87,6.02]
[1718450107140,5.68,143.93,143.87,6.02]
[1718450107342,5.68,143.93,143.88,0.17]
[1718450107518,107.7106,143.96,143.88,0.17]
[1718450107519,5.68,143.94,143.88,5.85]
[1718450107715,5.68,143.94,143.88,0.17]
[1718450107925,5.68,143.94,143.89,5.68]
[1718450110234,5.68,143.94,143.88,0.17]
[1718450110437,5.68,143.93,143.88,5.85]
[1718450111456,5.68,143.93,143.89,1.38964606]
[1718450111623,5.68,143.93,143.87,0.34]
[1718450111829,5.68,143.93,143.87,6.02]
[1718450112317,5.68,143.93,143.88,7.06975572]
[1718450112720,5.68,143.93,143.88,1.38975572]
[1718450113018,5.68,143.93,143.88,7.06975572]
[1718450113421,5.68,143.93,143.88,1.38975572]
[1718450113723,5.68,143.9,143.86,6.0636]
[1718450113925,5.68,143.89,143.86,6.0636]
[1718450115052,5.68,143.89,143.85,16.6038]
[1718450115546,5.68,143.88,143.85,16.6038]
[1718450116127,5.68,143.89,143.86,1.39014231]
[1718450116348,5.68,143.89,143.85,16.6038]
[1718450116956,5.68,143.89,143.85,17.99391425]
[1718450117134,100.0,143.92,143.85,16.6038]
[1718450117455,5.68,143.89,143.85,16.6038]
[1718450117666,5.68,143.9,143.85,16.6038]
[1718450118579,5.68,143.89,143.85,16.6038]
[1718450123177,2.571,143.91,143.85,16.6038]
[1718450123178,7.7132,143.91,143.85,16.6038]
[1718450123478,5.68,143.88,143.85,16.6038]
[1718450123835,107.7129,143.92,143.85,16.6038]
[1718450124043,5.68,143.89,143.85,16.6038]
[1718450124455,0.31989688,143.88,143.85,16.6038]
[1718450131662,5.99989688,143.88,143.85,16.6038]
[1718450133490,0.31989688,143.88,143.85,16.6038]
[1718450140797,0.31989688,143.88,143.86,5.68]
[1718450140976,0.31989688,143.88,143.87,5.68]
[1718450141299,0.31989688,143.88,143.87,12.2735]
[1718450141481,0.31989688,143.88,143.87,12.4435]
[1718450142998,0.31989688,143.88,143.87,13.8331655]
[1718450144494,0.31989688,143.88,143.87,13.83316132]
[1718450144704,0.31989688,143.88,143.87,33.83316132]
[1718450145472,0.31989688,143.88,143.87,32.4435]
[1718450148898,0.31989688,143.88,143.87,33.8330439]
[1718450149199,0.31989688,143.88,143.87,28.1530439]
[1718450149397,0.31989688,143.88,143.87,33.6630439]
[1718450150003,0.31989688,143.88,143.87,12.2735]
[1718450155784,0.31989688,143.88,143.87,13.6632596]
[1718450163306,0.31989688,143.88,143.85,16.6038]
[1718450163511,0.31989688,143.88,143.86,0.34]
[1718450163718,0.31989688,143.88,143.86,100.34]
[1718450163898,0.31989688,143.88,143.87,6.02]
[1718450164215,0.31989688,143.88,143.87,7.74960046]
[1718450165291,0.31989688,143.88,143.87,27.22]
[1718450165615,0.31989688,143.88,143.87,55.24749486]
[1718450166639,0.31989688,143.88,143.87,61.62009486]
[1718450166814,257.5,144.08,143.87,61.62009486]
[1718450166815,15.2884,144.0,143.92,0.17]
[1718450167119,6.2938,144.02,143.95,0.17]
[1718450167350,11.9738,144.02,143.97,5.68]
[1718450167502,15.2884,144.04,143.97,5.68]
[1718450167701,5.68,144.03,143.97,5.68]
[1718450167899,17.8564,144.08,143.99,5.68]
[1718450168103,17.8564,144.08,143.98,0.34]
[1718450168104,5.68,144.06,144.0,5.85]
[1718450168624,5.68,144.06,144.01,5.68]
[1718450169405,5.68,144.05,144.0,5.85]
[1718450169820,5.68,144.05,144.0,0.17]
[1718450170324,5.68,144.03,143.98,5.85]
[1718450170529,5.68,144.03,143.95,100.0]
[1718450170530,5.68,144.03,143.97,5.85]
[1718450170700,5.68,144.03,143.98,5.68]
[1718450171308,5.68,144.04,143.98,5.68]
[1718450172808,5.68,144.04,143.99,1.03736734]
[1718450174020,5.68,144.03,143.99,1.03736734]
[1718450175032,5.68,144.03,143.98,1.03736734]
[1718450180136,100.0,144.05,143.96,0.17]
[1718450180340,5.68,144.0,143.96,0.17]
[1718450180519,5.68,144.0,143.96,0.34]
[1718450181836,5.68,144.01,143.96,0.34]
[1718450182035,5.68,144.02,143.96,0.34]
[1718450182210,5.68,144.02,143.96,6.02]
[1718450184420,5.68,144.01,143.96,6.02]
[1718450186417,5.68,144.01,143.96,0.34]
[1718450186843,5.68,144.02,143.96,0.34]
[1718450188825,5.68,144.01,143.96,0.34]
[1718450190448,5.68,144.01,143.96,6.02]
[1718450193948,5.68,144.01,143.96,0.34]
[1718450194525,5.68,144.0,143.95,5.68]
[1718450195141,5.68,144.01,143.95,5.68]
[1718450197832,7.7065,144.04,143.95,5.68]
[1718450198150,33.07524268,144.06,143.96,0.51]
[1718450198451,5.68,144.06,144.01,5.68]
[1718450199331,30.6964,144.08,144.02,1.38788207]
[1718450199332,22.9924,144.08,144.02,1.38788207]
[1718450199525,5.68,144.06,144.02,1.38788207]
[1718450199940,5.68,144.05,144.0,5.68]
[1718450200330,5.68,144.05,143.99,16.5832]
[1718450200331,5.68,144.05,143.99,22.2632]
[1718450200658,5.68,144.05,144.0,0.17]
[1718450202159,5.68,144.05,143.99,22.0932]
[1718450202357,5.68,144.04,143.99,22.0932]
[1718450202545,5.68,144.04,143.99,16.4132]
[1718450202855,5.68,144.03,143.99,16.4132]
[1718450207370,5.68,144.04,143.99,16.4132]
[1718450211763,5.68,144.03,143.99,16.4132]
[1718450214963,125.6824,144.07,143.99,16.4132]
[1718450214964,5.68,144.04,143.99,16.4132]
[1718450219859,5.68,144.03,143.99,16.4132]
[1718450221166,5.68,144.02,143.97,6.3922]
[1718450222352,125.6859,144.05,143.97,6.3922]
[1718450222576,5.68,144.01,143.97,6.3922]
[1718450225157,5.68,144.02,143.97,6.3922]
[1718450226355,123.1169,144.05,143.97,6.3922]
[1718450226558,5.68,144.01,143.97,6.3922]
[1718450229673,5.68,143.99,143.95,16.6333]
[1718450229984,5.68,143.98,143.95,16.6333]
[1718450230982,5.68,143.97,143.95,16.6333]
[1718450233766,0.17,144.02,143.95,16.6333]
[1718450234079,5.68,143.98,143.95,16.6333]
[1718450234460,0.33333333,143.97,143.95,16.6333]
[1718450236464,6.01333333,143.97,143.95,16.6333]
[1718450237758,0.33333333,143.97,143.95,16.6333]
[1718450251076,0.33333333,143.97,143.93,6.3839]
[1718450251574,6.01333333,143.97,143.93,6.3839]
[1718450252495,0.33333333,143.97,143.93,6.3839]
[1718450255882,0.33333333,143.97,143.94,0.73182115]
[1718450268110,0.33333333,143.97,143.94,6.41182115]
[1718450268295,0.33333333,143.97,143.95,5.68]
[1718450268605,0.33333333,143.97,143.96,0.7317467]
[1718450270301,0.33333333,143.97,143.95,5.68]
[1718450278626,0.33333333,143.97,143.94,5.85]
[1718450280733,0.33333333,143.97,143.94,5.68]
[1718450281024,0.33333333,143.97,143.93,5.68]
[1718450282204,0.33333333,143.97,143.94,5.68]
[1718450283097,0.33333333,143.97,143.95,5.68]
[1718450284743,0.33333333,143.97,143.94,5.85]
[1718450289112,0.33333333,143.97,143.94,5.68]
[1718450289425,0.33333333,143.97,143.92,6.02]
[1718450289924,0.33333333,143.97,143.92,5.85]
[1718450294419,0.33333333,143.97,143.93,5.68]
[1718450295331,0.33333333,143.97,143.92,5.85]
[1718450297239,0.33333333,143.97,143.93,0.85951072]
[1718450307153,0.33333333,143.97,143.92,5.85]
[1718450308128,0.33333333,143.97,143.92,0.17]
[1718450308441,0.33333333,143.97,143.92,5.85]
[1718450309751,0.33333333,143.97,143.92,5.68]
[1718450310047,6.01333333,143.97,143.91,5.85]
[1718450311653,0.33333333,143.97,143.92,5.68]
[1718450312141,0.33333333,143.97,143.93,0.8637604]
[1718450316455,0.33333333,143.97,143.92,0.86410986]
[1718450324158,0.33333333,143.97,143.92,6.54410986]
[1718450324344,0.33333333,143.97,143.93,0.86404982]
[1718450325256,0.33333333,143.97,143.93,6.54404982]
[1718450325455,0.33333333,143.97,143.94,5.68]
[1718450325661,0.33333333,143.97,143.96,105.85]
[1718450325959,0.33333333,143.97,143.96,126.87]
[1718450326170,0.33333333,143.97,143.96,147.21]
[1718450328057,0.33333333,143.97,143.96,155.23749486]
[1718450330052,1e-08,143.97,143.96,154.78640668]
[1718450330247,16.2434,144.07,144.0,0.17]
[1718450330448,16.2434,144.07,144.01,5.68]
[1718450330766,21.9234,144.07,144.02,5.68]
[1718450331270,16.2434,144.07,144.02,5.68]
[1718450331475,16.2434,144.07,144.03,6.19]
[1718450331773,16.2434,144.07,144.04,5.68]
[1718450331950,16.2434,144.07,144.03,5.85]
[1718450332155,16.2434,144.07,144.02,5.68]
[1718450337172,21.9234,144.07,144.02,5.68]
[1718450337550,5.68,144.06,144.01,5.68]
[1718450338183,21.9234,144.07,144.01,5.68]
[1718450339544,21.9234,144.07,144.0,0.17]
[1718450339742,5.68,144.06,144.01,5.68]
[1718450340148,5.68,144.06,144.0,0.51]
[1718450340149,5.68,144.06,144.0,5.85]
[1718450340349,5.68,144.06,144.0,0.17]
[1718450340545,5.68,144.05,144.0,5.68]
[1718450340772,5.68,144.03,143.97,8.02749486]
[1718450340941,5.68,144.03,143.98,5.68]
[1718450341341,5.68,144.03,143.97,8.02749486]
[1718450341651,5.68,144.03,143.97,13.70749486]
[1718450341845,5.68,144.03,143.97,8.02749486]
[1718450342045,16.6347,144.02,143.97,13.70749486]
[1718450342272,22.3147,144.02,143.96,5.68]
[1718450343147,16.6347,144.02,143.96,5.68]
[1718450343353,5.68,144.01,143.96,5.68]
[1718450347856,22.3147,144.02,143.96,5.68]
[1718450349472,22.3147,144.02,143.97,5.68]
[1718450354578,16.6347,144.02,143.97,5.68]
[1718450355461,16.6347,144.02,143.96,5.68]
[1718450357470,16.6347,144.02,143.97,5.68]
[1718450357775,16.6347,144.02,143.96,5.68]
[1718450358276,16.6347,144.02,143.96,0.17]
[1718450358480,16.6347,144.02,143.97,5.68]
[1718450358886,16.6347,144.02,143.98,5.68]
[1718450359672,16.6347,144.02,143.97,5.68]
[1718450362172,16.6347,144.02,143.96,0.51]
[1718450362373,16.6347,144.02,143.97,5.68]
[1718450364283,16.6347,144.02,143.96,0.17]
[1718450364489,16.6347,144.02,143.97,5.68]
[1718450369290,22.3147,144.02,143.94,0.17]
[1718450369591,5.68,144.01,143.95,5.68]
[1718450371179,22.3147,144.02,143.96,5.68]
[1718450375498,16.6347,144.02,143.97,5.68]
[1718450375890,22.3147,144.02,143.97,5.68]
[1718450379187,16.6347,144.02,143.98,5.68]
[1718450379884,16.6347,144.02,143.99,5.68]
[1718450380406,16.6347,144.02,143.98,5.68]
[1718450380999,16.6347,144.02,143.97,100.17]
[1718450381202,16.6347,144.02,144.0,5.68]
[1718450386317,21.3424,144.06,144.0,5.68]
[1718450387298,15.6624,144.06,144.0,0.17]
[1718450387503,15.6624,144.06,144.01,5.68]
[1718450391222,15.6624,144.06,144.02,0.93304461]
[1718450391720,15.6624,144.06,144.01,5.68]
[1718450396628,15.6624,144.06,144.0,0.34]
[1718450396826,21.3424,144.06,144.01,5.68]
[1718450398220,21.3424,144.06,144.0,6.02]
[1718450398910,15.6624,144.06,144.01,5.68]
[1718450399111,21.3424,144.06,144.01,5.68]
[1718450401606,15.6624,144.06,144.01,5.68]
[1718450401803,15.6624,144.06,144.02,5.68]
[1718450402209,15.6624,144.06,144.04,5.68]
[1718450402611,15.6624,144.06,144.01,121.02]
[1718450402924,15.6624,144.06,144.02,5.68]
[1718450407107,15.6624,144.06,144.0,0.17]
[1718450407302,15.6624,144.06,144.0,20.68]
[1718450407615,15.6624,144.06,144.02,5.68]
[1718450409512,15.6624,144.06,144.03,5.68]
[1718450415050,15.6624,144.06,144.02,5.68]
[1718450416035,5.68,144.09,144.02,0.17]
[1718450416237,28.136,144.1,144.04,5.68]
[1718450417122,22.456,144.1,144.04,5.68]
[1718450417321,28.136,144.1,144.04,5.68]
[1718450418136,0.3729532,144.11,144.05,126.7]
[1718450418319,0.3729532,144.11,144.07,5.68]
[1718450418512,0.3729532,144.11,144.08,5.68]
[1718450421741,0.3729532,144.11,144.07,105.68]
[1718450422032,0.3729532,144.11,144.08,0.17]
[1718450422742,0.3729532,144.11,144.08,5.85]
[1718450423643,0.3729532,144.11,144.08,0.17]
[1718450425322,0.3729532,144.11,144.05,100.0]
[1718450425550,6.0529532,144.11,144.06,25.68]
[1718450425918,0.3729532,144.11,144.06,25.68]
[1718450426112,0.3729532,144.11,144.07,5.68]
[1718450428635,0.3729532,144.11,144.06,20.0]
[1718450428836,0.3729532,144.11,144.07,5.68]
[1718450429264,0.3729532,144.11,144.07,105.68]
[1718450429460,0.3729532,144.11,144.08,6.19]
[1718450430441,0.3729532,144.11,144.08,0.51]
[1718450430639,0.3729532,144.11,144.08,20.34]
[1718450430845,0.3729532,144.11,144.08,26.02]
[1718450431246,0.3729532,144.11,144.1,0.17]
[1718450431433,0.3729532,144.11,144.1,0.34]
[1718450433059,0.3729532,144.11,144.1,6.36]
[1718450433263,6.2461,144.18,144.12,0.17]
[1718450433566,6.2461,144.18,144.13,105.68]
[1718450433753,6.2461,144.18,144.14,5.85]
[1718450434643,16.3781,144.19,144.14,5.85]
[1718450434960,16.3781,144.19,144.15,0.17]
[1718450437351,16.3781,144.19,144.15,5.85]
[1718450442236,16.3756,144.24,144.16,100.17]
[1718450442441,5.68,144.22,144.16,100.17]
[1718450442656,5.68,144.21,144.16,105.85]
[1718450444255,5.68,144.21,144.16,100.17]
[1718450444445,5.68,144.21,144.16,105.85]
[1718450446546,16.3756,144.24,144.17,5.68]
[1718450446762,5.68,144.22,144.17,5.68]
[1718450447447,16.3756,144.24,144.17,5.68]
[1718450447771,5.68,144.22,144.17,5.68]
[1718450449258,5.68,144.22,144.16,100.17]
[1718450450269,5.68,144.22,144.17,0.51]
[1718450452155,5.68,144.22,144.17,0.34]
[1718450452368,121.5061,144.24,144.15,9.06215126]
[1718450452550,5.68,144.19,144.14,105.68]
[1718450452863,5.68,144.19,144.14,100.0]
[1718450454349,5.68,144.19,144.14,105.68]
[1718450454768,5.68,144.19,144.14,100.0]
[1718450455075,5.68,144.19,144.13,28.7531]
[1718450455247,5.68,144.2,144.14,5.68]
[1718450455573,5.68,144.19,144.14,5.68]
[1718450455959,5.68,144.19,144.13,28.7531]
[1718450458652,5.68,144.19,144.14,5.68]
[1718450459367,5.68,144.19,144.13,23.0731]
[1718450459574,5.68,144.19,144.14,5.68]
[1718450459764,142.0277,144.24,144.14,5.68]
[1718450459964,5.68,144.19,144.14,5.68]
[1718450460361,5.68,144.19,144.13,23.0731]
[1718450460557,5.68,144.19,144.13,21.9651]
[1718450464971,5.68,144.2,144.14,5.68]
[1718450465180,5.68,144.2,144.13,0.34]
[1718450465371,5.68,144.19,144.13,26.02]
[1718450466386,5.68,144.19,144.13,20.34]
[1718450466589,5.68,144.19,144.14,5.68]
[1718450468172,5.68,144.19,144.13,20.34]
[1718450468402,5.68,144.19,144.13,26.02]
[1718450469600,5.68,144.2,144.13,26.02]
[1718450470687,5.68,144.19,144.13,26.02]
[1718450472177,5.68,144.19,144.13,20.34]
[1718450472381,5.68,144.19,144.14,5.68]
[1718450475594,5.68,144.19,144.13,26.02]
[1718450483191,23.59097343,144.24,144.16,5.68]
[1718450483370,5.68,144.23,144.17,6.02]
[1718450483570,5.68,144.23,144.17,0.34]
[1718450483875,5.68,144.23,144.18,5.68]
[1718450486593,16.5289,144.29,144.21,5.68]
[1718450486888,6.5384248,144.26,144.21,5.68]
[1718450487489,0.8584248,144.26,144.22,0.17]
[1718450487805,0.8584248,144.26,144.21,105.68]
[1718450488103,0.8584248,144.26,144.2,16.1687]
[1718450488392,0.8584248,144.26,144.21,5.68]
[1718450488995,6.5384248,144.26,144.21,5.68]
[1718450489801,0.8584248,144.26,144.21,5.68]
[1718450489987,6.5384248,144.26,144.21,5.68]